Cogmind - Beta 11.1 @@@ ROGUE MODE // 2022.12.10 @ 19:17:41 Player: omewwes Result: Destroyed by Striker with Compact Linear Accelerator Performance ------------- Evolutions (7) 3500 Regions Visited (23) 4600 Robots Destroyed (422) 2110 Value Destroyed (22932) 22932 Prototype IDs (13) 260 Alien Tech Used (0) 0 Bonus (14947) 14947 TOTAL SCORE: 48349 Bonus ------- Triggered High Security 500 High Alert Combat Kills 6611 Follower Combat Kills 2198 Entered Garrisons 1400 Used RIF Installer 3500 Network Hubs Disabled 200 Met R17 at Cetus 500 Met R17 at Research 2000 Friendly Fire -1962 Cogmind --------- Core Integrity 0/1300 Matter 300/300 Energy 100/100 System Corruption 2% Temperature Cool (0) Movement Core (50) Location -3/Research Parts ------- > --- POWER (2) -------- (None) > --- PROPULSION (6) --- (None) > --- UTILITY (9) ------ Improved Targeting Computer Improved Targeting Computer Advanced Targeting Computer Advanced Target Analyzer Advanced Weapon Cycler Graphene Brace > --- WEAPON (4) ------- (None) > --- INVENTORY (5) ---- Light Antimatter Reactor Long-range Terrain Scanner Relay Coupler [Sentry] (19) Coil Gun Ripper Peak State ------------ > --- POWER ------------ Graviton Reactor Light Quantum Reactor > --- PROPULSION ------- Armored Medium Treads Biometal Medium Treads Biometal Medium Treads Biometal Medium Treads Armored Heavy Treads > --- UTILITY ---------- Experimental Heat Sink Huge Storage Unit Advanced Targeting Computer Advanced Target Analyzer Advanced Target Analyzer Advanced Target Analyzer Experimental Core Analyzer Centrium Light Armor Plating Graphene Brace > --- WEAPON ----------- KE Penetrator Enhanced Coil Gun Railgun Helical Railgun > --- INVENTORY -------- Light Particle Reactor Light Quantum Reactor Armored Medium Treads Improved Coolant Injector Long-range Terrain Scanner Experimental Core Analyzer Armor Integrity Analyzer Advanced Weapon Cycler Advanced Transmission Jammer Centrium Light Armor Plating Centrium Light Armor Plating Advanced Powered Armor Improved Remote Force Field Antimissile System Relay Coupler [Sentry] Relay Coupler [Hunter] Long-range Tractor Beam Hypervelocity Railgun Helical Railgun Micro-nuke Launcher Advanced Remote Datajack Ripper [Rating: 166] Favorites ----------- Power Reinforced Deuterium Engine Engine Reinforced Deuterium Engine Power Core Light Fission Core Reactor Light Antimatter Reactor Propulsion Light Treads Treads Light Treads Utility Huge Storage Unit Device Weapon Cycler Storage Huge Storage Unit Processor Improved Targeting Computer Hackware Relay Coupler [NC] Protection Advanced Powered Armor Weapon Flak Gun Energy Gun Pulse Rifle Ballistic Gun Flak Gun Ballistic Cannon Enhanced Gauss Cannon Launcher Micro-nuke Launcher Special Weapon Remote Datajack Slashing Weapon Chainsword Build | -11 -10 -10 -9 -8 -8 -8 -8 -7 -7 -7 -7 -6 -6 -5 -5 -5 -5 -5 -5 -5 -4 -4 -3 ------- Run | Scr Mat Min Mat Mat Gar Mat Gar Fac Gar Fac Gar Fac Gar Fac Gar Fac Ext Cet Arc Hub Fac Gar Res Slots Evolved 14 | . . . 2 2 . . . 2 . . . 2 . 2 . . . . . . 2 . 2 Power 1 | . . . . . . . . . . . . . . . . . . . . . . . 1 Propulsion 4 | . . . . . . . . . . . . 2 . . . . . . . . 2 . . Utility 7 | . . . 2 1 . . . 1 . . . . . 2 . . . . . . . . 1 Weapon 2 | . . . . 1 . . . 1 . . . . . . . . . . . . . . . Parts Attached 472 | 7 4 . 23 5 5 17 3 19 11 45 32 7 10 9 22 14 32 12 4 19 16 27 129 Power 26 | 2 . . 2 . 1 1 . . 1 1 . . . . . . 3 2 . . 2 2 9 Engine 9 | 2 . . 1 . 1 1 . . 1 1 . . . . . . 2 . . . . . . Core 2 | . . . 1 . . . . . . . . . . . . . 1 . . . . . . Reactor 15 | . . . . . . . . . . . . . . . . . . 2 . . 2 2 9 Propulsion 64 | 2 . . 6 3 2 2 1 . 2 5 3 2 . . 4 1 5 2 . 1 2 6 15 Treads 64 | 2 . . 6 3 2 2 1 . 2 5 3 2 . . 4 1 5 2 . 1 2 6 15 Leg . | . . . . . . . . . . . . . . . . . . . . . . . . Wheel . | . . . . . . . . . . . . . . . . . . . . . . . . Hover . | . . . . . . . . . . . . . . . . . . . . . . . . Flight . | . . . . . . . . . . . . . . . . . . . . . . . . Utility 206 | 1 2 . 5 . 1 8 . 7 4 23 20 . 6 5 10 4 10 4 1 9 10 12 64 Device 111 | . 2 . 2 . 1 4 . 4 2 14 12 . 2 1 3 3 5 1 . 3 6 6 40 Storage 6 | 1 . . 1 . . 1 . 1 . . . . . . . . 1 . . . 1 . . Processor 22 | . . . 1 . . 1 . 1 . 3 2 . . 1 . 1 2 1 . . 2 . 7 Hackware 38 | . . . . . . 1 . . . 3 5 . 4 1 7 . 2 . 1 6 . 3 5 Protection 29 | . . . 1 . . 1 . 1 2 3 1 . . 2 . . . 2 . . 1 3 12 Artifact . | . . . . . . . . . . . . . . . . . . . . . . . . Weapon 176 | 2 2 . 10 2 1 6 2 12 4 16 9 5 4 4 8 9 14 4 3 9 2 7 41 Energy Gun 18 | . 1 . 6 1 . 5 1 3 . . . . . . . . 1 . . . . . . Energy Cannon . | . . . . . . . . . . . . . . . . . . . . . . . . Ballistic Gun 105 | 2 1 . 1 . . 1 . 9 2 10 7 3 1 3 4 5 8 4 1 6 2 5 30 Ballistic Cannon 1 | . . . . . . . . . . . . . . . . . 1 . . . . . . Launcher 15 | . . . 3 1 . . 1 . . . 1 1 1 . 1 . . . . . . . 6 Special Weapon 26 | . . . . . 1 . . . . 3 1 . 2 1 3 3 2 . 1 3 . 2 4 Impact Weapon . | . . . . . . . . . . . . . . . . . . . . . . . . Slashing Weapon 11 | . . . . . . . . . 2 3 . 1 . . . 1 2 . 1 . . . 1 Piercing Weapon . | . . . . . . . . . . . . . . . . . . . . . . . . Special Melee Weapon . | . . . . . . . . . . . . . . . . . . . . . . . . Unidentified Prototypes 12 | . . . 2 . . 1 . . . . . . . . . . . 3 . 1 . . 5 Corrupted Parts 1 | . . . . . . . 1 . . . . . . . . . . . . . . . . System Corruption 3 | . . . . . . . 3 . . . . . . . . . . . . . . . . Parts Lost 83 | . . . 2 9 4 1 . . 1 4 5 . . 1 2 . 10 2 . . 5 1 36 Power 10 | . . . . 1 . . . . . . . . . . . . 2 . . . 2 . 5 Propulsion 22 | . . . . 3 2 1 . . 1 1 . . . . 1 . 4 . . . 1 . 8 Utility 16 | . . . 1 2 . . . . . . 2 . . 1 . . . . . . 2 . 8 Weapon 35 | . . . 1 3 2 . . . . 3 3 . . . 1 . 4 2 . . . 1 15 Highest Loss Streak 10 | . . . 1 9 4 1 . . 1 2 5 . . 1 1 . 10 1 . . 3 1 9 To Critical Strikes 1 | . . . . . . . . . . . . . . . . . . . . . 1 . . Average Slot Usage (%) 94 | . 94 100 94 71 59 94 100 95 100 99 99 100 98 100 99 100 99 93 88 88 83 92 86 Engine 4 | . 14 14 8 8 8 9 9 7 7 7 7 6 6 5 5 5 2 1 . . . . . Reactor 2 | . . . . . . . . . . . . . . . . . . 3 5 5 4 5 8 Treads 18 | . 28 28 22 18 18 18 18 15 15 15 14 26 26 23 22 23 22 16 11 11 15 24 15 Device 16 | . 9 14 19 13 3 15 18 19 30 22 24 20 20 18 17 11 13 12 8 4 11 10 13 Storage 6 | . 14 14 11 9 9 9 9 7 7 7 7 6 6 5 5 5 5 5 5 5 5 5 3 Processor 10 | . . . 3 9 9 11 . 3 . 6 7 6 6 5 5 6 12 23 23 17 18 21 17 Hackware 4 | . . . . . . 1 9 3 . 3 4 6 4 3 4 17 12 . 2 15 5 . . Protection 3 | . . . 4 . . 3 9 6 6 3 . . . 11 10 3 . 3 5 . . 4 4 Energy Gun 2 | . 5 14 19 6 6 22 26 9 . . . . . . . . 1 . . . . . . Ballistic Gun 20 | . 21 14 1 5 . 3 . 20 29 28 29 25 21 22 19 17 16 23 20 19 21 20 18 Naked Turns . | . . . . . . . . . . . . . . . . . . . . . . . . Heaviest Build 176 | 14 16 16 27 26 23 31 34 112 111 124 118 115 118 127 132 120 116 131 132 128 129 131 176 Greatest Support 230 | 40 40 40 40 40 40 40 40 40 40 40 40 80 80 80 83 91 93 160 160 160 230 230 215 Greatest Overweight (x) 3 | . . . . . . . . 2 2 3 2 1 1 1 2 1 2 1 . . . 1 2 Average Overweight (x) . | . . . . . . . . 1 2 2 2 1 1 1 1 1 1 . . . . . . Largest Inventory Capacity 25 | 8 8 8 10 10 10 10 10 25 25 25 25 25 25 25 25 25 25 25 25 25 25 25 25 Average Capacity 23 | 6 8 8 8 10 10 10 10 24 25 25 25 25 25 25 25 25 25 25 25 25 25 25 24 Most Carried 25 | 2 6 6 10 10 8 10 9 25 25 25 25 24 25 25 25 25 25 25 25 25 25 25 25 Average Carried 21 | 1 3 6 7 9 6 8 9 13 22 24 24 23 24 21 21 24 24 24 24 23 19 24 23 Final Capacity 25 | 8 8 8 10 10 10 10 10 25 25 25 25 25 25 25 25 25 25 25 25 25 25 25 5 Final Carried 25 | 2 6 6 10 6 6 9 9 24 23 25 25 24 25 20 25 24 25 25 25 22 25 25 5 Class Distribution -------------------- 25% | Scavenger-Gunner 22% | Bothacker-Gunner 22% | Botlord-Gunner 10% | Botlord-Mutant 5% | Scavenger-Tank 3% | Mutant 3% | Bothacker-Mutant 3% | Scavenger-Mutant Dominant Class ---------------- Mutant | -10/Materials Mutant | -10/Mines Scavenger-Mutant | -9/Materials Scavenger-Mutant | -8/Materials Mutant | -8/Garrison Scavenger-Tank | -8/Materials Scavenger-Tank | -8/Garrison Scavenger-Tank | -7/Factory Bothacker-Gunner | -7/Garrison Bothacker-Gunner | -7/Factory Bothacker-Gunner | -7/Garrison Bothacker-Gunner | -6/Factory Botlord-Mutant | -6/Garrison Botlord-Gunner | -5/Factory Botlord-Mutant | -5/Garrison Botlord-Mutant | -5/Factory Botlord-Gunner | -5/Extension Botlord-Gunner | -5/Cetus Botlord-Gunner | -5/Archives Bothacker-Gunner | -5/Hub_04(d) Scavenger-Gunner | -4/Factory Botlord-Gunner | -4/Garrison Scavenger-Gunner | -3/Research Resources | -11 -10 -10 -9 -8 -8 -8 -8 -7 -7 -7 -7 -6 -6 -5 -5 -5 -5 -5 -5 -5 -4 -4 -3 ----------- Run | Scr Mat Min Mat Mat Gar Mat Gar Fac Gar Fac Gar Fac Gar Fac Gar Fac Ext Cet Arc Hub Fac Gar Res Matter Collected 17248 | 236 232 . 303 51 40 197 1 742 842 1974 1167 6 360 436 1071 391 845 539 209 648 541 1387 5030 Remotely 5067 | . . . . . . . . . 462 510 261 . . 288 . 50 470 . . 243 489 . 2294 Salvage Created 22282 | . 232 19 512 98 224 547 7 949 868 2199 1085 61 38 496 475 484 787 1130 450 1606 536 1508 7971 Parts 1024 | . 15 5 39 4 9 38 3 40 45 121 45 1 4 23 12 21 34 46 24 39 36 67 353 Haulers Intercepted 12 | . . . 2 . . . . 1 . 7 . . . . . . . . . 1 . . 1 Recyclers Shooed 7 | . 1 . 2 . . . . 2 . 1 . . . . . . 1 . . . . . . Parts Field Recycled . | . . . . . . . . . . . . . . . . . . . . . . . . Retrieved Matter . | . . . . . . . . . . . . . . . . . . . . . . . . Parts Self-Destructed . | . . . . . . . . . . . . . . . . . . . . . . . . Prevented . | . . . . . . . . . . . . . . . . . . . . . . . . Kills | -11 -10 -10 -9 -8 -8 -8 -8 -7 -7 -7 -7 -6 -6 -5 -5 -5 -5 -5 -5 -5 -4 -4 -3 ------- Run | Scr Mat Min Mat Mat Gar Mat Gar Fac Gar Fac Gar Fac Gar Fac Gar Fac Ext Cet Arc Hub Fac Gar Res Combat Hostiles Destroyed 344 | . 6 . 17 2 4 10 4 7 26 27 23 1 3 9 10 5 6 15 4 11 7 31 116 Melee 1 | . . . . . 1 . . . . . . . . . . . . . . . . . . Guns 291 | . 6 . 7 . 1 10 . 7 26 27 20 1 1 9 10 5 5 15 4 11 7 31 88 Cannons 2 | . . . . . 1 . . . . . . . . . . . 1 . . . . . . AOE 48 | . . . 9 2 . . 4 . . . 3 . 2 . . . . . . . . . 28 Classes Destroyed 25 | . 1 2 4 1 . 2 . 1 2 . 1 . . . 1 . 1 . . . 1 1 7 Worker 18 | . . 1 1 . . 1 . 2 . 6 . . . 1 . . . . . 6 . . . Builder 10 | . . . . . . 1 . 1 . 2 . . . 1 . . 1 . . 2 2 . . Tunneler 2 | . . 1 . . . . . . . . . . . . . . . . . . . . 1 Hauler 12 | . . . 2 . . . . 1 . 7 . . . . . . . . . 1 . . 1 Recycler 28 | . . . . . . 1 . 7 . 11 . . . 1 . 2 2 . . 4 . . . Carrier 1 | . . . . . . . . . . . . . . . . . . . . . . . 1 Mechanic 1 | . . . . . . . . . . . . . . . . . . . . . . . 1 Operator 5 | . . . . . . . . . . . . . . . . . 1 . 3 1 . . . Watcher 7 | . . . 1 . . . . . . 2 . . . 1 . . 1 1 . . . . 1 Swarmer 69 | . . . 10 . . 2 4 . 6 5 3 . 3 4 . . . . . 2 . 16 14 Saboteur 3 | . . . . . . . . . . . . . . . . . . . . . . . 3 Grunt 142 | . 6 . 5 1 4 4 . 3 13 8 17 . . 2 6 . 3 6 . 6 . 12 46 Brawler 5 | . . . . . . . . . 1 . 1 . . 1 1 . . . . . . 1 . Duelist 14 | . . . . . . . . . 2 1 . . . . . . . 1 . . . . 10 Protector 2 | . . . . . . . . . . . . . . . . . . . . . . . 2 Sentry 30 | . . . 2 . . 4 . 2 3 3 2 . . . 1 . 1 . 4 3 . 2 3 Demolisher 10 | . . . . . . . . . . . . . . . . . . . . . . 1 9 Specialist 1 | . . . . . . . . . . . 1 . . . . . . . . . . . . Hunter 17 | . . . . 1 . . . . 1 3 . . . . . . . . . 1 4 . 7 Programmer 25 | . . . . . . . . 2 . 7 . 1 . 2 1 5 . . . . 2 . 5 Heavy 1 | . . . . . . . . . . . . . . . . . . . . . 1 . . Behemoth 4 | . . . . . . . . . . . . . . . 1 . 2 . . . . . 1 Cetus Guard 8 | . . . . . . . . . . . . . . . . . . 8 . . . . . Investigator 1 | . . . . . . . . . . . . . . . . . . . . . . . 1 Striker 17 | . . . . . . . . . . . . . . . . . . . . . . . 17 Executioner 1 | . . . . . . . . . . . . . . . . . . . . . . . 1 Thug 1 | . . . . . . . . . . . . . . . . . 1 . . . . . . Savage 1 | . . . . . . . . . . . . . . . . . 1 . . . . . . Butcher 2 | . . . . . . . . . . . . . . . . . . 2 . . . . . Best Kill Streak 28 | . 2 2 4 2 2 6 4 4 8 6 4 1 2 9 4 2 3 5 4 7 4 8 28 Combat Bots Only 26 | . 2 . 4 2 2 3 4 2 8 3 4 1 2 6 4 2 2 4 4 3 4 8 26 Max Kills in Single Turn 4 | . 1 1 3 1 1 3 3 2 2 3 3 1 2 2 2 2 3 2 1 4 1 2 4 Gunslinging 1 | . . . . . . . . . 1 1 . . . . 1 1 . 1 . 1 . 1 1 Exploded 4 | . . . 3 1 . . 3 . . . 3 . 2 . . . . . . . . . 4 Melee 1 | . . . . . 1 . . . . . . . . . . . . . . . . . . Uniques/NPCs Destroyed . | . . . . . . . . . . . . . . . . . . . . . . . . Combat | -11 -10 -10 -9 -8 -8 -8 -8 -7 -7 -7 -7 -6 -6 -5 -5 -5 -5 -5 -5 -5 -4 -4 -3 -------- Run | Scr Mat Min Mat Mat Gar Mat Gar Fac Gar Fac Gar Fac Gar Fac Gar Fac Ext Cet Arc Hub Fac Gar Res Damage Taken 25782 | . 171 . 627 999 577 394 . 257 577 1252 818 114 191 346 482 176 1927 932 126 611 1668 1764 11773 Core 2812 | . 31 . 77 170 104 75 . 24 73 216 118 . 19 26 15 . 224 64 . 50 89 115 1322 Absorbed by Shields 857 | . . . . . . . . . . . . . . . 65 . . . . . 21 19 752 Reduced by Siege Mode 463 | . . . . . . . . . . . . . . . . . . 26 . . 105 . 332 Redirected to Shielding 18 | . . . . . . . . . 17 1 . . . . . . . . . . . . . Regen/Repaired (Parts) 133 | . . . . . . . . . . . . . . . . . . . . . 133 . . Core Remaining (%) 72 | 100 . 87 80 . . . 36 . . . 38 . 97 . . . . . . 62 . 82 . Volleys Fired 882 | 1 16 1 52 9 30 24 3 23 40 86 47 3 14 18 54 26 42 26 12 31 26 77 221 Largest 4 | 2 2 2 2 2 2 3 1 4 4 4 4 4 4 4 4 4 4 4 4 4 4 4 4 Hottest 209 | 40 85 85 121 76 85 184 36 209 112 112 112 114 114 116 116 123 197 128 130 138 125 130 164 Shots Fired 2729 | 2 32 2 82 13 44 72 3 92 160 301 138 9 17 66 145 56 118 103 36 107 104 256 771 Gun 2559 | 2 32 2 78 11 20 72 . 92 160 289 127 8 6 64 130 41 96 103 32 102 104 244 744 Cannon 11 | . . . . . . . . . . . . . . . . . 11 . . . . . . Launcher 30 | . . . 4 2 . . 3 . . . 1 1 2 . 1 . . . . . . . 16 Special 129 | . . . . . 24 . . . . 12 10 . 9 2 14 15 11 . 4 5 . 12 11 Kinetic 2373 | 2 28 1 4 7 . 8 . 74 160 289 127 8 6 64 130 41 95 103 32 102 104 244 744 Thermal 215 | . 4 1 74 4 44 58 . 18 . . . . . . . . 12 . . . . . . Explosive 30 | . . . 4 2 . . 3 . . . 1 1 2 . 1 . . . . . . . 16 Electromagnetic 6 | . . . . . . 6 . . . . . . . . . . . . . . . . . Robot Hit Streak 43 | 1 10 1 24 6 5 15 . 10 11 14 15 7 8 18 20 5 27 20 13 16 10 17 43 Robot Miss Streak 17 | 1 2 1 3 3 2 2 . 4 17 10 5 1 3 6 5 2 2 2 1 2 3 3 9 Penetration Max 2 | . . . . . . . . 1 . 1 1 . . . 1 1 1 1 1 1 1 1 2 Secondary Targets 66 | . 1 . . . . . . . 7 2 3 . . . 2 1 . 8 . 3 . 9 30 Max Gunslinging Chain 2 | . 1 . . . . . . . 1 1 1 . . . 1 1 . 2 . 1 . 2 2 Shots Hit Robots 1918 | 1 24 1 64 9 22 48 . 57 139 220 97 5 10 53 96 37 88 80 32 75 62 148 550 Core Hits 1190 | . 12 1 25 9 7 22 4 43 146 204 70 5 5 57 46 12 34 49 14 36 22 61 306 Critical Kills 91 | . . . . . . 1 . . . 1 1 . . . . 2 2 6 3 9 3 13 50 Critical Parts Destroyed 104 | . . . . . . . . 3 . . . . . . 2 2 9 4 1 11 4 10 58 Critical Strikes 234 | . . . 3 . . 3 . 3 . 1 1 . . . 2 4 18 10 6 20 7 24 132 Burn 6 | . . . 3 . . 2 . . . . . . . . . . 1 . . . . . . Destroy 227 | . . . . . . 1 . 3 . 1 1 . . . 2 4 16 10 6 20 7 24 132 Blast 1 | . . . . . . . . . . . . . . . . . 1 . . . . . . Melee Attacks 25 | . . . . . . . . . 2 3 . 1 . . . 4 1 . 3 . . . 11 Impact . | . . . . . . . . . . . . . . . . . . . . . . . . Slashing 25 | . . . . . . . . . 2 3 . 1 . . . 4 1 . 3 . . . 11 Piercing . | . . . . . . . . . . . . . . . . . . . . . . . . Sneak Attacks 3 | . . . . . . . . . . . . . . . . . . . 3 . . . . Combat Hostiles . | . . . . . . . . . . . . . . . . . . . . . . . . Follow-up Attacks . | . . . . . . . . . . . . . . . . . . . . . . . . Damage Inflicted 48578 | 14 316 19 1365 261 297 789 308 1309 2132 3936 1917 149 265 981 1921 750 2275 2135 791 2879 1790 4293 17686 Guns 40232 | 14 316 15 918 85 189 789 . 1309 2132 3935 1672 149 64 981 1921 741 1619 2135 496 2267 1790 4293 12402 Cannons 209 | . . . . . . . . . . . . . . . . . 209 . . . . . . Explosions 7634 | . . . 443 176 . . 308 . . 1 245 . 201 . . . 447 . . 560 . . 5253 Melee 295 | . . . . . . . . . . . . . . . . . . . 295 . . . . Ramming 107 | . . 4 4 . 7 . . . . . . . . . . 9 . . . 52 . . 31 Kinetic 38127 | 14 270 15 41 27 . 106 . 1071 2132 3935 1672 149 64 981 1921 741 1605 2135 496 2267 1790 4293 12402 Thermal 2815 | . 46 . 877 58 290 635 . 238 . 1 . . . . . . 670 . . . . . . Explosive 6626 | . . . 443 176 . . 308 . . . 245 . 201 . . . . . . . . . 5253 Electromagnetic 608 | . . . . . . 48 . . . . . . . . . . . . . 560 . . . Impact . | . . . . . . . . . . . . . . . . . . . . . . . . Slashing 295 | . . . . . . . . . . . . . . . . . . . 295 . . . . Piercing . | . . . . . . . . . . . . . . . . . . . . . . . . Highest Corruption 7 | . . . . . . . 3 1 1 4 4 . . 1 1 1 3 3 3 7 1 1 2 Average Corruption 1 | . . . . . . . 3 1 1 1 4 . . 1 1 1 2 3 3 5 1 1 1 Corruption Purged . | . . . . . . . . . . . . . . . . . . . . . . . . Corruption Blocked . | . . . . . . . . . . . . . . . . . . . . . . . . Effects 202 | . . . . . . . . 5 6 46 54 . . 1 14 10 10 14 6 16 1 10 9 Message Errors 46 | . . . . . . . . 1 . 15 12 . . 1 2 3 3 2 2 1 . 2 2 Matter Fused 42 | . . . . . . . . 1 . 8 11 . . . 6 3 3 4 1 . . 2 3 Heat Flow Errors 39 | . . . . . . . . 2 2 7 13 . . . 1 2 1 1 . 7 . 3 . Energy Discharges 27 | . . . . . . . . 1 2 3 8 . . . 3 . 2 3 1 1 . 2 1 Data Loss (minor) 22 | . . . . . . . . . 2 5 5 . . . 1 1 . 1 1 4 1 . 1 Data Loss (major) 7 | . . . . . . . . . . 2 2 . . . . 1 . . 1 1 . . . Misfires 9 | . . . . . . . . . . 1 3 . . . 1 . 1 1 . 1 . . 1 Alerts 4 | . . . . . . . . . . 3 . . . . . . . . . . . 1 . Weapon Failures 6 | . . . . . . . . . . 2 . . . . . . . 2 . 1 . . 1 Overload Shots . | . . . . . . . . . . . . . . . . . . . . . . . . Overflow Damage 334 | . . . 52 . . . 43 . . . . . 6 . . . 88 . . 85 . . 60 Projectiles . | . . . . . . . . . . . . . . . . . . . . . . . . Explosions 322 | . . . 52 . . . 43 . . . . . 6 . . . 88 . . 73 . . 60 Melee 12 | . . . . . . . . . . . . . . . . . . . . 12 . . . Knockbacks . | . . . . . . . . . . . . . . . . . . . . . . . . Impact . | . . . . . . . . . . . . . . . . . . . . . . . . Kinetic . | . . . . . . . . . . . . . . . . . . . . . . . . Secondary . | . . . . . . . . . . . . . . . . . . . . . . . . Self-Inflicted Damage 646 | . . . 30 12 . . . . . 113 . 88 . . . . 72 . . 101 . . 230 Shots 14 | . . . 2 1 . . . . . 1 . 3 . . . . 1 . . 1 . . 5 Rammed 11 | . . . 1 . 7 . . . . . . . . . . 1 . . . 1 . . 1 Targets Rammed 13 | . . 1 1 . 8 . . . . . . . . . . 1 . . . 1 . . 1 Kicked . | . . . . . . . . . . . . . . . . . . . . . . . . Crushed 2 | . . 1 . . 1 . . . . . . . . . . . . . . . . . . Highest Temperature 392 | . . . 2 20 28 225 . 250 242 296 225 32 32 78 105 219 362 210 45 268 341 306 392 Average Temperature 78 | . . . 2 13 7 67 . 76 81 54 75 24 24 31 35 52 102 38 27 77 142 94 97 Received Heat Transfer 4277 | . 96 . 174 432 378 189 . 90 240 186 270 . 36 27 137 . 426 138 9 117 . 234 1098 Effects 10 | . . . . . . . . . . . . . . . . . . . . . 2 4 4 Energy Bleed 3 | . . . . . . . . . . . . . . . . . . . . . 2 . 1 Interference 5 | . . . . . . . . . . . . . . . . . . . . . . 3 2 Matter Decay 1 | . . . . . . . . . . . . . . . . . . . . . . 1 . Damage (minor) 1 | . . . . . . . . . . . . . . . . . . . . . . . 1 Siege Activations 16 | . . . . . . . . . . . . . . . . . . 1 . . 1 . 14 Total Turns 309 | . . . . . . . . . . . . . . . . . . 17 . . 39 . 253 Longest Duration 44 | . . . . . . . . . . . . . . . . . . 17 . . 39 . 44 Robots Corrupted 1 | . . . . . . . . . . . . . . . . . . . . 1 . . . Combat Hostiles . | . . . . . . . . . . . . . . . . . . . . . . . . Parts Fried 9 | . . . . . . . . . . . . . . . . . . . . 9 . . . Impact Corruptions 1 | . . . . . . . . . . . . . . . . . . . . 1 . . . Robots Melted 3 | . . . 2 . 1 . . . . . . . . . . . . . . . . . . Combat Hostiles 2 | . . . 1 . 1 . . . . . . . . . . . . . . . . . . Parts Melted 10 | . 1 . . . 3 4 . 1 . . . . . . . . . 1 . . . . . Heat Transferred 6331 | . 111 . 2405 148 814 1628 . 481 . 50 . . . . . . 694 . . . . . . Parts Sabotaged 4 | . . . . . . . . . . . . . . . . . . . . . . . 4 Parts Stolen . | . . . . . . . . . . . . . . . . . . . . . . . . Parts Stripped . | . . . . . . . . . . . . . . . . . . . . . . . . Power Chain Reactions . | . . . . . . . . . . . . . . . . . . . . . . . . Missiles Intercepted 3 | . . . . . . . . . . . . . . . . . . . . . . . 3 Alert | -11 -10 -10 -9 -8 -8 -8 -8 -7 -7 -7 -7 -6 -6 -5 -5 -5 -5 -5 -5 -5 -4 -4 -3 ------- Run | Scr Mat Min Mat Mat Gar Mat Gar Fac Gar Fac Gar Fac Gar Fac Gar Fac Ext Cet Arc Hub Fac Gar Res Peak Influence 2637 | . 215 93 407 248 235 309 290 201 509 346 710 509 509 422 729 382 117 195 114 796 536 1105 2637 Initial 621 | . . 83 35 171 115 114 198 151 51 266 235 372 216 266 295 382 7 25 . 4 392 258 621 Average 380 | . 94 83 217 185 178 185 211 57 248 182 557 390 384 312 564 232 31 92 57 132 414 719 871 Maximum Alert Level 5 | . 1 . 2 1 1 1 1 1 2 1 3 2 2 2 3 1 . . . 3 2 4 5 Low Security (%) 40 | 100 71 100 35 83 57 68 83 99 50 65 . . . . . 48 100 100 100 79 . . . Level 1 22 | . 28 . 52 16 42 31 16 . 30 34 17 84 48 82 19 51 . . . 12 72 14 . Level 2 25 | . . . 11 . . . . . 19 . 67 15 51 17 61 . . . . . 27 29 68 Level 3 7 | . . . . . . . . . . . 15 . . . 18 . . . . 7 . 53 7 Level 4 2 | . . . . . . . . . . . . . . . . . . . . . . 3 12 Level 5 . | . . . . . . . . . . . . . . . . . . . . . . . . High Security 1 | . . . . . . . . . . . . . . . . . . . . . . . 11 Max Security . | . . . . . . . . . . . . . . . . . . . . . . . . Sterilizations 1 | . . . . . . . . . . . . . . . . . . . . . . . 1 Squads Dispatched 50 | . 1 . . 2 . 3 . 5 . 10 . 1 . 3 . 4 2 . . 7 2 . 10 Investigation 11 | . . . . . . 1 . 1 . 1 . . . . . . 1 . . 1 . . 6 Extermination 14 | . . . . . . . . 2 . 7 . 1 . 1 . 2 . . . 1 . . . Reinforcement 18 | . 1 . . 1 . 1 . 1 . 2 . . . . . 2 1 . . 3 2 . 4 Assault 1 | . . . . . . . . . . . . . . . . . . . . 1 . . . Garrison 6 | . . . . 1 . 1 . 1 . . . . . 2 . . . . . 1 . . . Intercept . | . . . . . . . . . . . . . . . . . . . . . . . . Searches Triggered . | . . . . . . . . . . . . . . . . . . . . . . . . Construction Impeded 3 | . . . . . . . . . . . . . . . . 1 . . . 1 1 . . Haulers Reinforced 5 | . . . . . . . . . . 1 . . . . . . . . . 1 . . 3 Active Scanning Responses . | . . . . . . . . . . . . . . . . . . . . . . . . Cargo Convoy Interrupts . | . . . . . . . . . . . . . . . . . . . . . . . . Alert ID Control Effect 1 | . . . . . . . . . . . . . . . . . . . . . . . 1 Stealth | -11 -10 -10 -9 -8 -8 -8 -8 -7 -7 -7 -7 -6 -6 -5 -5 -5 -5 -5 -5 -5 -4 -4 -3 --------- Run | Scr Mat Min Mat Mat Gar Mat Gar Fac Gar Fac Gar Fac Gar Fac Gar Fac Ext Cet Arc Hub Fac Gar Res Distress Signals 26 | . 2 . 2 . . 2 . 1 . 1 . . . 1 . . . 2 . . 1 . 14 Communications Jammed 1 | . . . . . . . . . . . . . . . . . . . . . . . 1 Distress Signals 1 | . . . . . . . . . . . . . . . . . . . . . . . 1 Times Spotted 561 | . 13 . 28 9 4 15 3 10 25 41 35 1 10 13 26 8 21 21 7 29 10 43 189 Peak Tracking Total 18 | . 5 . 7 6 2 4 3 2 7 3 8 1 4 4 6 2 5 5 1 6 5 7 18 Tactical Retreats 32 | . 1 . 1 . 1 . . 1 1 . . . 1 . . . . . . . 1 5 20 Traps | -11 -10 -10 -9 -8 -8 -8 -8 -7 -7 -7 -7 -6 -6 -5 -5 -5 -5 -5 -5 -5 -4 -4 -3 ------- Run | Scr Mat Min Mat Mat Gar Mat Gar Fac Gar Fac Gar Fac Gar Fac Gar Fac Ext Cet Arc Hub Fac Gar Res Traps Triggered 43 | . 1 . . . . . . 1 3 4 8 3 3 . 10 1 4 . . 2 . . 3 Indirectly 4 | . . . . . . . . . . . . 3 . . . . . . . 1 . . . Trap Hack Attempts . | . . . . . . . . . . . . . . . . . . . . . . . . Triggered . | . . . . . . . . . . . . . . . . . . . . . . . . Disarmed . | . . . . . . . . . . . . . . . . . . . . . . . . Reprogrammed . | . . . . . . . . . . . . . . . . . . . . . . . . Reused . | . . . . . . . . . . . . . . . . . . . . . . . . Traps Extracted . | . . . . . . . . . . . . . . . . . . . . . . . . Installed . | . . . . . . . . . . . . . . . . . . . . . . . . Triggered . | . . . . . . . . . . . . . . . . . . . . . . . . Machines | -11 -10 -10 -9 -8 -8 -8 -8 -7 -7 -7 -7 -6 -6 -5 -5 -5 -5 -5 -5 -5 -4 -4 -3 ---------- Run | Scr Mat Min Mat Mat Gar Mat Gar Fac Gar Fac Gar Fac Gar Fac Gar Fac Ext Cet Arc Hub Fac Gar Res Machines Disabled 55 | . . . 3 . 1 . . 2 1 6 3 9 2 1 5 . 2 . 1 12 . 4 3 Max in Single Turn 9 | . . . 1 . 1 . . 2 1 2 1 5 1 1 1 . 2 . 1 9 . 1 1 Garrison Access 2 | . . . . . . . . . . . . . . . . . . . . 1 . . 1 Garrison Relay 14 | . . . . . 1 . . . 1 . 3 . 2 . 3 . . . . . . 4 . Phase Generator 1 | . . . . . . . . . . . . . . . 1 . . . . . . . . Network Hub 1 | . . . . . . . . . . . . . . . . . . . . 1 . . . Energy Cycler 2 | . . . . . . . . . . . . . . . . . 2 . . . . . . Machines Sabotaged . | . . . . . . . . . . . . . . . . . . . . . . . . Garrisons Compromised . | . . . . . . . . . . . . . . . . . . . . . . . . Overloaded Fab Kills . | . . . . . . . . . . . . . . . . . . . . . . . . Hacking | -11 -10 -10 -9 -8 -8 -8 -8 -7 -7 -7 -7 -6 -6 -5 -5 -5 -5 -5 -5 -5 -4 -4 -3 --------- Run | Scr Mat Min Mat Mat Gar Mat Gar Fac Gar Fac Gar Fac Gar Fac Gar Fac Ext Cet Arc Hub Fac Gar Res Machines Accessed 42 | . 1 1 1 2 . 4 . 3 . 5 . 2 . 1 . 1 5 . . 4 2 . 10 Terminals 22 | . 1 1 1 1 . 2 . 1 . 3 . . . . . 1 5 . . 3 . . 3 Fabricators 3 | . . . . . . . . 1 . . . . . . . . . . . . . . 2 Repair Stations 1 | . . . . . . . . . . . . . . . . . . . . . 1 . . Recycling Units 5 | . . . . . . 1 . . . 1 . 1 . . . . . . . . . . 2 Scanalyzers . | . . . . . . . . . . . . . . . . . . . . . . . . Garrison Access 11 | . . . . 1 . 1 . 1 . 1 . 1 . 1 . . . . . 1 1 . 3 Total Hacks 75 | . 1 1 2 5 . 9 . 5 . 8 . 2 . 1 . 1 9 . . 10 3 . 18 Successful 38 | . . . 1 3 . 6 . 4 . 4 . 1 . 1 . 1 6 . . 1 3 . 7 Failed 37 | . 1 1 1 2 . 3 . 1 . 4 . 1 . . . . 3 . . 9 . . 11 Catastrophic 18 | . 1 1 . 1 . 1 . . . 3 . 1 . . . . . . . 5 . . 5 Database Lockouts . | . . . . . . . . . . . . . . . . . . . . . . . . Manual 34 | . 1 1 1 2 . 4 . 2 . 3 . 1 . . . . 1 . . 10 . . 8 Terminals 39 | . 1 1 2 3 . 4 . 2 . 5 . . . . . 1 9 . . 6 . . 5 Fabricators 7 | . . . . . . . . 2 . . . . . . . . . . . . . . 5 Repair Stations 2 | . . . . . . . . . . . . . . . . . . . . . 2 . . Recycling Units 9 | . . . . . . 2 . . . 2 . 1 . . . . . . . . . . 4 Scanalyzers . | . . . . . . . . . . . . . . . . . . . . . . . . Garrison Access 18 | . . . . 2 . 3 . 1 . 1 . 1 . 1 . . . . . 4 1 . 4 Terminal Hacks 13 | . . . 1 1 . 3 . . . 1 . . . . . 1 5 . . . . . 1 Part Schematic 1 | . . . . . . 1 . . . . . . . . . . . . . . . . . Open Door 4 | . . . . . . . . . . . . . . . . 1 3 . . . . . . Terminal Index 1 | . . . . . . . . . . . . . . . . . 1 . . . . . . Garrison Index 1 | . . . . . . . . . . 1 . . . . . . . . . . . . . Unreport Threat 1 | . . . . . . . . . . . . . . . . . . . . . . . 1 Locate Traps 1 | . . . . . . 1 . . . . . . . . . . . . . . . . . Hauler Manifests 1 | . . . 1 . . . . . . . . . . . . . . . . . . . . Registered Components 1 | . . . . . . 1 . . . . . . . . . . . . . . . . . Zone Layout 2 | . . . . 1 . . . . . . . . . . . . 1 . . . . . . Fabricator Hacks 4 | . . . . . . . . 2 . . . . . . . . . . . . . . 2 Load Schematic 2 | . . . . . . . . 1 . . . . . . . . . . . . . . 1 Build 2 | . . . . . . . . 1 . . . . . . . . . . . . . . 1 Repair Station Hacks 2 | . . . . . . . . . . . . . . . . . . . . . 2 . . Scan Component 1 | . . . . . . . . . . . . . . . . . . . . . 1 . . Repair 1 | . . . . . . . . . . . . . . . . . . . . . 1 . . Recycling Unit Hacks . | . . . . . . . . . . . . . . . . . . . . . . . . Scanalyzer . | . . . . . . . . . . . . . . . . . . . . . . . . Garrison Access Hacks 7 | . . . . 1 . 1 . 1 . 1 . 1 . 1 . . . . . . 1 . . Unlock Access 7 | . . . . 1 . 1 . 1 . 1 . 1 . 1 . . . . . . 1 . . Unauthorized Hacks 12 | . . . . 1 . 2 . 1 . 2 . . . . . . 1 . . 1 . . 4 Terminals 7 | . . . . 1 . 1 . 1 . 1 . . . . . . 1 . . 1 . . 1 Track 6 | . . . . 1 . 1 . 1 . 1 . . . . . . 1 . . . . . 1 Sabotage 1 | . . . . . . . . . . . . . . . . . . . . 1 . . . Fabricators . | . . . . . . . . . . . . . . . . . . . . . . . . Repair Stations . | . . . . . . . . . . . . . . . . . . . . . . . . Recycling Units 3 | . . . . . . . . . . 1 . . . . . . . . . . . . 2 Reject 2 | . . . . . . . . . . 1 . . . . . . . . . . . . 1 Mask 1 | . . . . . . . . . . . . . . . . . . . . . . . 1 Scanalyzers . | . . . . . . . . . . . . . . . . . . . . . . . . Garrison Access 2 | . . . . . . 1 . . . . . . . . . . . . . . . . 1 Reprogram 2 | . . . . . . 1 . . . . . . . . . . . . . . . . 1 Data Cores Recovered 1 | . . . . . . . . . . . . . . . . . . . . . . . 1 Used 1 | . . . . . . . . . . . . . . . . . . . . . . . 1 Hacking Detections 32 | . 1 1 1 1 . 1 . 2 . 3 . 2 . . . . 5 . . 3 2 . 10 Full Trace Events 3 | . . . . . . . . 1 . . . . . . . . 1 . . . . . 1 Feedback Events . | . . . . . . . . . . . . . . . . . . . . . . . . Feedback Blocked . | . . . . . . . . . . . . . . . . . . . . . . . . Robot Schematics Acquired . | . . . . . . . . . . . . . . . . . . . . . . . . Robots Built . | . . . . . . . . . . . . . . . . . . . . . . . . Authchips . | . . . . . . . . . . . . . . . . . . . . . . . . Time . | . . . . . . . . . . . . . . . . . . . . . . . . Total Robot Build Rating . | . . . . . . . . . . . . . . . . . . . . . . . . Part Schematics Acquired 1 | . . . . . . 1 . . . . . . . . . . . . . . . . . Parts Built 2 | . . . . . . . . 1 . . . . . . . . . . . . . . 1 Authchips . | . . . . . . . . . . . . . . . . . . . . . . . . Time 76 | . . . . . . . . 25 . . . . . . . . . . . . . . 51 Total Part Build Rating 2 | . . . . . . . . 1 . . . . . . . . . . . . . . 1 Parts Repaired 1 | . . . . . . . . . . . . . . . . . . . . . 1 . . Time 99 | . . . . . . . . . . . . . . . . . . . . . 99 . . Parts Recycled . | . . . . . . . . . . . . . . . . . . . . . . . . Recycled Matter . | . . . . . . . . . . . . . . . . . . . . . . . . Retrieved Matter . | . . . . . . . . . . . . . . . . . . . . . . . . Retrieved Components . | . . . . . . . . . . . . . . . . . . . . . . . . Parts Scanalyzed . | . . . . . . . . . . . . . . . . . . . . . . . . Part Schematics Acquired . | . . . . . . . . . . . . . . . . . . . . . . . . Parts Damaged . | . . . . . . . . . . . . . . . . . . . . . . . . Bothacking | -11 -10 -10 -9 -8 -8 -8 -8 -7 -7 -7 -7 -6 -6 -5 -5 -5 -5 -5 -5 -5 -4 -4 -3 ------------ Run | Scr Mat Min Mat Mat Gar Mat Gar Fac Gar Fac Gar Fac Gar Fac Gar Fac Ext Cet Arc Hub Fac Gar Res Used RIF Installer 7 | . . . . . 1 . 1 . 1 . 1 . 1 . 1 . . . . . . 1 . Hotswap 1 | . . . . . . . . . . . . . . . 1 . . . . . . . . Threat Obfuscator 1 | . . . . . . . 1 . . . . . . . . . . . . . . . . Watcher Feeds 1 | . . . . . . . . . . . 1 . . . . . . . . . . . . Alert ID Control 1 | . . . . . . . . . . . . . . . . . . . . . . 1 . Autooverride 1 | . . . . . . . . . 1 . . . . . . . . . . . . . . Autoassimilate 1 | . . . . . . . . . . . . . 1 . . . . . . . . . . Robots Hacked 75 | . . . . . . . . . . 4 10 . 8 2 14 5 9 . 1 3 . 5 14 Non-combat 14 | . . . . . . . . . . 4 . . . . . 4 2 . 1 2 . . 1 Combat 61 | . . . . . . . . . . . 10 . 8 2 14 1 7 . . 1 . 5 13 Autooverrided 9 | . . . . . . . . . . . 3 . 1 . 1 . 1 . . . . . 3 Autoassimilated 6 | . . . . . . . . . . . . . 1 . 2 . . . . . . . 3 Robot Hacks Applied 69 | . . . . . . . . . . 8 7 . 6 2 11 8 8 . 2 4 . 5 8 parse_system 3 | . . . . . . . . . . . . . . . . . . . . . . . 3 no_distress 1 | . . . . . . . . . . . . . . . . . . . . 1 . . . map_walls 4 | . . . . . . . . . . 1 . . . . . 1 2 . . . . . . ignore_parts 1 | . . . . . . . . . . . . . . . . 1 . . . . . . . check_alert 1 | . . . . . . . . . . . . . . . . . . . 1 . . . . purge_threat 2 | . . . . . . . . . . . . . . . . 1 . . 1 . . . . find_terminals 1 | . . . . . . . . . . . . . . . . . . . . 1 . . . locate_traps 2 | . . . . . . . . . . . . . . . . 2 . . . . . . . block_reporting 1 | . . . . . . . . . . . . . . . . . . . . 1 . . . map_route 2 | . . . . . . . . . . 2 . . . . . . . . . . . . . relay_feed 2 | . . . . . . . . . . 2 . . . . . . . . . . . . . link_fov 5 | . . . . . . . . . . 3 . . . . . 2 . . . . . . . overload_power 1 | . . . . . . . . . . . . . 1 . . . . . . . . . . reboot_system 3 | . . . . . . . . . . . . . . . 3 . . . . . . . . overwrite_iff 18 | . . . . . . . . . . . 5 . 3 . 1 . 4 . . . . 3 2 formatsys_high 22 | . . . . . . . . . . . 2 . 2 2 7 1 2 . . 1 . 2 3 Relay Couplers Released 68 | . . . . . 4 . . . 3 . 14 . 9 . 14 . . . . 2 4 16 2 Machine Destruction 64 | . . . . . 4 . . . 3 . 14 . 9 . 14 . . . . 2 . 16 2 Programmers 4 | . . . . . . . . . . . . . . . . . . . . . 4 . . Attached 34 | . . . . . . . . . . 3 5 . 4 1 7 . 2 . 1 3 . 3 5 Fabnet Peak Effective % . | . . . . . . . . . . . . . . . . . . . . . . . . Robots Rewired 15 | . . . . . . . . . . . . . . . . . 6 . . . . 9 . Allies Hacked 1 | . . . . . . . . . . . . . . . 1 . . . . . . . . Hacks Repelled . | . . . . . . . . . . . . . . . . . . . . . . . . Allies | -11 -10 -10 -9 -8 -8 -8 -8 -7 -7 -7 -7 -6 -6 -5 -5 -5 -5 -5 -5 -5 -4 -4 -3 -------- Run | Scr Mat Min Mat Mat Gar Mat Gar Fac Gar Fac Gar Fac Gar Fac Gar Fac Ext Cet Arc Hub Fac Gar Res Total Allies 82 | . . . . . . 2 . . . . 10 . 7 2 11 1 22 . . 1 . 14 12 Largest Group 9 | . . . . . . 2 2 2 . . 4 . 5 3 5 2 9 9 . 1 . 8 9 Highest-Rated Group 422 | . . . . . . 28 28 28 . . 48 . 145 87 165 82 230 227 . 41 . 282 422 Highest-Rated Ally 58 | . . . . . . 18 18 18 . . 29 . 29 29 49 49 49 31 . 41 . 56 58 Total Orders 3 | . . . . . . . . . . . . . . . . . . . . . . . 3 EXPLORE 3 | . . . . . . . . . . . . . . . . . . . . . . . 3 Ally Attacks 356 | . . . . . . . . 4 . . 37 . 25 30 66 4 39 22 . 13 . 26 90 Total Damage 8031 | . . . . . . . . 85 . . 396 . 434 430 1414 137 831 417 . 464 . 565 2858 Kills 63 | . . . . . . . . 2 . . 6 . 6 2 8 1 6 1 . 6 . 7 18 Allies Corrupted . | . . . . . . . . . . . . . . . . . . . . . . . . Allies Melted 2 | . . . . . . . . . . . . . . . . . 2 . . . . . . Intel | -11 -10 -10 -9 -8 -8 -8 -8 -7 -7 -7 -7 -6 -6 -5 -5 -5 -5 -5 -5 -5 -4 -4 -3 ------- Run | Scr Mat Min Mat Mat Gar Mat Gar Fac Gar Fac Gar Fac Gar Fac Gar Fac Ext Cet Arc Hub Fac Gar Res Robot Analysis Total . | . . . . . . . . . . . . . . . . . . . . . . . . Derelict Logs Recovered 1 | . . 1 . . . . . . . . . . . . . . . . . . . . . Drone Launches 3 | . . . . . . . . . . . . . . . . . . . . . . . 3 Drone Recoveries . | . . . . . . . . . . . . . . . . . . . . . . . . Exploration | -11 -10 -10 -9 -8 -8 -8 -8 -7 -7 -7 -7 -6 -6 -5 -5 -5 -5 -5 -5 -5 -4 -4 -3 ------------- Run | Scr Mat Min Mat Mat Gar Mat Gar Fac Gar Fac Gar Fac Gar Fac Gar Fac Ext Cet Arc Hub Fac Gar Res Turns Passed 24586 | 83 293 184 661 102 389 593 193 1814 714 4405 2178 422 638 277 1399 1180 1569 442 200 677 487 1870 3816 Spaces Moved 9404 | 51 138 113 289 47 154 268 111 538 178 1247 625 167 235 90 506 441 544 193 94 336 210 927 1902 Core 34 | 11 . . . . . . . . . . . . . . . . . . . . . . 23 Treads 9370 | 40 138 113 289 47 154 268 111 538 178 1247 625 167 235 90 506 441 544 193 94 336 210 927 1879 Legs . | . . . . . . . . . . . . . . . . . . . . . . . . Wheels . | . . . . . . . . . . . . . . . . . . . . . . . . Hover . | . . . . . . . . . . . . . . . . . . . . . . . . Flight . | . . . . . . . . . . . . . . . . . . . . . . . . Fastest Speed 50 | 50 160 160 160 160 160 160 160 160 320 320 320 240 240 240 240 240 240 160 160 160 160 160 50 Average Speed 220 | 136 160 160 160 160 160 160 160 310 320 324 320 240 240 240 240 240 242 172 160 160 160 165 152 Slowest Speed 400 | 160 160 160 160 160 160 160 160 320 320 400 320 240 240 240 320 240 325 242 160 160 160 246 330 Overloaded Moves . | . . . . . . . . . . . . . . . . . . . . . . . . Propulsion Burnouts . | . . . . . . . . . . . . . . . . . . . . . . . . Robots Hopped . | . . . . . . . . . . . . . . . . . . . . . . . . Cave-ins Triggered . | . . . . . . . . . . . . . . . . . . . . . . . . Exploration Rate (%) 38 | 4 32 35 35 8 37 21 37 14 29 41 75 7 53 7 68 14 84 56 73 44 11 83 59 Regions Visited 23 Branch Regions 5 Pre-discovered Areas 1 | . . 1 . . . . . . . . . . . . . . . . . . . . . Known Exits Taken 8 | . . . . 1 . 1 . 1 . 1 . 1 . 1 . . . . . 1 1 . . Unknown Exits Taken 8 | 1 1 1 1 . . . . . . . . . . . . 1 1 1 1 . . . . Scrap Searched . | . . . . . . . . . . . . . . . . . . . . . . . . Spaces Dug 33 | . . . . . . . 13 . . 3 . 12 . . . 4 1 . . . . . . Terrain Destroyed 864 | . . . 17 16 . . 41 . . 23 19 12 32 . 84 4 30 4 10 204 24 49 295 Melee 9 | . . . . . . . . . . 3 . 1 . . . 4 1 . . . . . . Projectile 213 | . . . . . . . . . . . 4 . . . 1 . 10 4 10 34 24 48 78 AOE 635 | . . . 17 16 . . 41 . . 20 15 11 32 . 83 . 19 . . 170 . . 211 Terrain Rammed . | . . . . . . . . . . . . . . . . . . . . . . . . Walls Destroyed . | . . . . . . . . . . . . . . . . . . . . . . . . Machines Disabled . | . . . . . . . . . . . . . . . . . . . . . . . . Actions | -11 -10 -10 -9 -8 -8 -8 -8 -7 -7 -7 -7 -6 -6 -5 -5 -5 -5 -5 -5 -5 -4 -4 -3 --------- Run | Scr Mat Min Mat Mat Gar Mat Gar Fac Gar Fac Gar Fac Gar Fac Gar Fac Ext Cet Arc Hub Fac Gar Res Total 11886 | 59 177 114 406 60 223 381 121 622 263 1481 757 181 308 128 638 534 724 266 124 418 304 1167 2430 Wait 482 | . 17 . 13 . 23 52 5 23 13 58 10 1 33 8 19 30 4 8 3 9 38 40 75 Move 9387 | 50 137 112 288 46 153 267 110 538 177 1247 624 167 234 90 505 440 543 192 93 336 210 926 1902 Hop . | . . . . . . . . . . . . . . . . . . . . . . . . Pick Up 184 | 1 2 . 9 . 4 7 . 9 6 17 10 1 6 . 13 7 14 8 4 9 11 12 34 Fast Attach 102 | 6 3 . 8 1 1 10 . 11 . 3 6 . . . 1 . 7 5 . 2 2 6 30 Attach 107 | . . . 2 4 4 2 . 3 2 10 11 2 2 5 5 . 9 3 . 3 6 6 28 Detach 72 | . 1 . 4 . . 5 . 8 1 6 8 . 2 2 3 . 4 4 . 4 1 3 16 Swap 263 | 1 1 . 13 . . 5 3 5 9 32 15 5 8 4 16 14 16 4 4 14 8 15 71 Drop 177 | . . . 16 . . 9 . 2 7 17 12 1 3 1 6 10 7 16 5 10 2 14 39 Fire 882 | 1 16 1 52 9 30 24 3 23 40 86 47 3 14 18 54 26 42 26 12 31 26 77 221 Melee 25 | . . . . . . . . . 2 3 . 1 . . . 4 1 . 3 . . . 11 Ram . | . . . . . . . . . . . . . . . . . . . . . . . . Kick . | . . . . . . . . . . . . . . . . . . . . . . . . Crush 12 | . . 1 1 . 8 . . . . . . . . . . 1 . . . . . . 1 Escape Stasis 56 | . . . . . . . . . 6 2 14 . 6 . 16 2 8 . . . . . 2 Rewire 137 | . . . . . . . . . . . . . . . . . 69 . . . . 68 . Trap . | . . . . . . . . . . . . . . . . . . . . . . . . Miscellaneous . | . . . . . . . . . . . . . . . . . . . . . . . . Route ------- -11/Scrapyard -10/Materials (discovered 2 exits: *Min x2) -10/Mines -9/Materials -8/Materials -8/Garrison -8/Materials -8/Garrison -7/Factory (discovered 2 exits: *Fac / Gar) -7/Garrison -7/Factory (discovered 3 exits: *Fac / [*Low] / Gar) -7/Garrison (discovered 3 exits: *Fac x3) -6/Factory -6/Garrison -5/Factory -5/Garrison (discovered 2 exits: *Fac x2) -5/Factory -5/Extension (discovered 3 exits: *Fac x2 / *Cet) -5/Cetus (discovered 2 exits: *Fac / [*Arc]) -5/Archives (discovered 2 exits: *Hub x2) -5/Hub_04(d) -4/Factory (discovered 2 exits: *Res / Gar) -4/Garrison (discovered 3 exits: *Res x3) -3/Research (discovered 2 exits: [*Res] / [*Tes]) History --------- Turn | Location | Event 6 | -11/Scrapyard | Discovered new exit (range 15) 84 | -11/Scrapyard | Entered Materials 182 | -10/Materials | Discovered new exit (range 16) 317 | -10/Materials | Build established: Mutant 339 | -10/Materials | Discovered new exit (range 15) 377 | -10/Materials | Entered Mines 387 | -10/Mines | Met a Derelict bent on vengeance 525 | -10/Mines | Learned location of Storage (-9) 545 | -10/Mines | Discovered new exit (range 7) 561 | -10/Mines | Entered Materials 561 | -9/Materials | Evolved 2 slots: Utility x2 995 | -9/Materials | Build established: Scavenger-Mutant 1164 | -9/Materials | Discovered new exit (range 16) 1222 | -9/Materials | Entered another Materials area 1222 | -8/Materials | Evolved 2 slots: Utility x1, Weapon x1 1237 | -8/Materials | Identified exit to Garrison 1267 | -8/Materials | Garrison activated, responded to threat 1324 | -8/Materials | Entered Garrison 1332 | -8/Garrison | Installed Relay Interface Framework 1343 | -8/Garrison | Lost 9 parts (1p3n2u3w) 1374 | -8/Garrison | Triggered checkpoint 1436 | -8/Garrison | Garrison Relay disabled 1591 | -8/Garrison | Build established: Mutant 1639 | -8/Garrison | Lost 4 parts (2n2w) 1700 | -8/Garrison | Discovered new exit (range 8) 1713 | -8/Garrison | Entered Materials 2046 | -8/Materials | Core integrity fell below 50% 2185 | -8/Materials | Identified exit to Garrison 2287 | -8/Materials | Garrison activated, responded to threat 2306 | -8/Materials | Entered Garrison 2306 | -8/Garrison | Accompanied by 2 allies 2314 | -8/Garrison | Expanded RIF knowledge: Threat Obfuscation 2371 | -8/Garrison | Build established: Scavenger-Tank 2408 | -8/Garrison | Triggered checkpoint 2483 | -8/Garrison | Discovered new exit (range 9) 2499 | -8/Garrison | Entered Factory 2499 | -7/Factory | Accompanied by 2 allies 2499 | -7/Factory | Evolved 2 slots: Utility x1, Weapon x1 2548 | -7/Factory | Fabricated Huge Storage Unit (x1) 3572 | -7/Factory | Discovered new exit (range 9) 3765 | -7/Factory | Build established: Scavenger-Gunner 4191 | -7/Factory | Garrison activated, responded to threat 4311 | -7/Factory | Identified exit to Garrison 4313 | -7/Factory | Entered Garrison 4329 | -7/Garrison | Expanded RIF knowledge: Autooverride 4410 | -7/Garrison | Triggered checkpoint 4489 | -7/Garrison | Garrison Relay disabled 4654 | -7/Garrison | Triggered checkpoint 4707 | -7/Garrison | Triggered checkpoint 4753 | -7/Garrison | Destroyed 8 combat bots 4766 | -7/Garrison | Build established: Bothacker-Gunner 4886 | -7/Garrison | Triggered checkpoint 4938 | -7/Garrison | Triggered checkpoint 4971 | -7/Garrison | Discovered new exit (range 15) 4974 | -7/Garrison | Triggered checkpoint 5027 | -7/Garrison | Entered Factory 7246 | -7/Factory | Discovered new exit (range 5) 8025 | -7/Factory | Discovered new exit (range 16) 8469 | -7/Factory | Build established: Bothacker-Mutant 9003 | -7/Factory | Build established: Scavenger-Gunner 9432 | -7/Factory | Identified exit to Garrison 9432 | -7/Factory | Entered Garrison 9512 | -7/Garrison | Triggered checkpoint 9555 | -7/Garrison | Garrison Relay disabled 9674 | -7/Garrison | Triggered checkpoint 9688 | -7/Garrison | Triggered checkpoint 9690 | -7/Garrison | Triggered checkpoint 9694 | -7/Garrison | Core integrity fell below 50% 9696 | -7/Garrison | Triggered checkpoint 9802 | -7/Garrison | Triggered checkpoint 9866 | -7/Garrison | Discovered new exit (range 10) 10135 | -7/Garrison | Discovered new exit (range 12) 10423 | -7/Garrison | Discovered new exit (range 15) 10484 | -7/Garrison | Expanded RIF knowledge: Watcher Feeds 10546 | -7/Garrison | Triggered checkpoint 10609 | -7/Garrison | Garrison Relay disabled 10919 | -7/Garrison | Build established: Bothacker-Gunner 11206 | -7/Garrison | Triggered checkpoint 11207 | -7/Garrison | Lost 5 parts (2u3w) 11245 | -7/Garrison | Garrison Relay disabled 11610 | -7/Garrison | Entered Factory 11610 | -6/Factory | Evolved 2 slots: Propulsion x2 12032 | -6/Factory | Identified exit to Garrison 12032 | -6/Factory | Entered Garrison 12208 | -6/Garrison | Triggered checkpoint 12234 | -6/Garrison | Garrison Relay disabled 12328 | -6/Garrison | Triggered checkpoint 12436 | -6/Garrison | Discovered new exit (range 15) 12487 | -6/Garrison | Expanded RIF knowledge: Autoassimilate 12542 | -6/Garrison | Triggered checkpoint 12575 | -6/Garrison | Garrison Relay disabled 12670 | -6/Garrison | Entered Factory 12670 | -5/Factory | Accompanied by 3 allies 12670 | -5/Factory | Evolved 2 slots: Utility x2 12793 | -5/Factory | Garrison activated, responded to threat 12947 | -5/Factory | Identified exit to Garrison 12947 | -5/Factory | Entered Garrison 12947 | -5/Garrison | Accompanied by 1 ally 13006 | -5/Garrison | Triggered checkpoint 13028 | -5/Garrison | Garrison Relay disabled 13116 | -5/Garrison | Spotted B-75 Beast 13138 | -5/Garrison | Triggered checkpoint 13138 | -5/Garrison | Triggered checkpoint 13146 | -5/Garrison | Triggered checkpoint 13170 | -5/Garrison | Destroyed B-75 Beast 13346 | -5/Garrison | Discovered new exit (range 11) 13424 | -5/Garrison | Build established: Botlord-Tank 13485 | -5/Garrison | Phase Generator disabled 13538 | -5/Garrison | Triggered checkpoint 13622 | -5/Garrison | Garrison Relay disabled 13752 | -5/Garrison | Triggered checkpoint 13881 | -5/Garrison | Discovered new exit (range 10) 13917 | -5/Garrison | Expanded RIF knowledge: Hotswap 13992 | -5/Garrison | Triggered checkpoint 14087 | -5/Garrison | Garrison Relay disabled 14265 | -5/Garrison | Build established: Botlord-Mutant 14346 | -5/Garrison | Entered Factory 14346 | -5/Factory | Accompanied by 2 allies 15449 | -5/Factory | Discovered new exit (range 5) 15526 | -5/Factory | Entered Extension 15526 | -5/Extension | Accompanied by 1 ally 15596 | -5/Extension | Rescued a captive Derelict 15654 | -5/Extension | Rescued a captive Derelict 15654 | -5/Extension | Rescued a captive Derelict 15870 | -5/Extension | Rescued a captive Derelict 15960 | -5/Extension | Energy Cycler disabled 15960 | -5/Extension | Rescued a captive Derelict 15960 | -5/Extension | Rescued a captive Derelict 15960 | -5/Extension | Rescued a captive Derelict 15961 | -5/Extension | Rescued a captive Derelict 15961 | -5/Extension | Rescued a captive Derelict 15962 | -5/Extension | Rescued a captive Derelict 15963 | -5/Extension | Rescued a captive Derelict 16035 | -5/Extension | Spotted B-75 Beast 16101 | -5/Extension | Destroyed B-75 Beast 16117 | -5/Extension | Spotted B-75 Beast 16137 | -5/Extension | Discovered new exit (range 19) 16142 | -5/Extension | Destroyed B-75 Beast 16169 | -5/Extension | Lost 10 parts (2p4n4w) 16218 | -5/Extension | Extracted ID and sensor layout for unrecognized location from A7's data core 16605 | -5/Extension | Build established: Botlord-Gunner 17044 | -5/Extension | Discovered new exit (range 14) 17044 | -5/Extension | Discovered new exit (range 10) 17095 | -5/Extension | Entered Cetus 17095 | -5/Cetus | Accompanied by 9 allies 17125 | -5/Cetus | Spotted Cetus Guard 17126 | -5/Cetus | Spotted Cetus Guard 17126 | -5/Cetus | Spotted Cetus Guard 17131 | -5/Cetus | Destroyed Cetus Guard 17136 | -5/Cetus | Spotted Cetus Guard 17141 | -5/Cetus | Destroyed Cetus Guard 17144 | -5/Cetus | Destroyed Cetus Guard 17148 | -5/Cetus | Destroyed Cetus Guard 17279 | -5/Cetus | Discovered new exit (range 16) 17358 | -5/Cetus | Spotted Cetus Guard 17358 | -5/Cetus | Spotted Cetus Guard 17366 | -5/Cetus | Destroyed Cetus Guard 17366 | -5/Cetus | Spotted Cetus Guard 17366 | -5/Cetus | Spotted Cetus Guard 17375 | -5/Cetus | Destroyed Cetus Guard 17375 | -5/Cetus | Destroyed Cetus Guard 17378 | -5/Cetus | Destroyed Cetus Guard 17394 | -5/Cetus | Discovered new exit (range 15) 17402 | -5/Cetus | Met Revision 17 17537 | -5/Cetus | Entered Archives 17600 | -5/Archives | Discovered new exit (range 16) 17631 | -5/Archives | Discovered new exit (range 15) 17737 | -5/Archives | Entered Hub_04(d) 18005 | -5/Hub_04(d) | Garrison activated, responded to threat 18128 | -5/Hub_04(d) | Build established: Bothacker-Gunner 18207 | -5/Hub_04(d) | Discovered new exit (range 14) 18264 | -5/Hub_04(d) | Identified exit to Factory 18364 | -5/Hub_04(d) | Network Hub disabled 18414 | -5/Hub_04(d) | Entered Factory 18414 | -4/Factory | Evolved 2 slots: Propulsion x2 18574 | -4/Factory | Build established: Scavenger-Gunner 18612 | -4/Factory | Repaired Adv. KE Penetrator 18627 | -4/Factory | Discovered new exit (range 26) 18675 | -4/Factory | Identified exit to Research 18689 | -4/Factory | Lost 3 parts (1p2u) 18901 | -4/Factory | Identified exit to Garrison 18901 | -4/Factory | Entered Garrison 18909 | -4/Garrison | Expanded RIF knowledge: Alert ID Control 18934 | -4/Garrison | Triggered checkpoint 18986 | -4/Garrison | Found Antimissile System 19006 | -4/Garrison | Triggered checkpoint 19185 | -4/Garrison | Destroyed 8 combat bots 19360 | -4/Garrison | Triggered checkpoint 19385 | -4/Garrison | Discovered exit to Research (range 15) 19448 | -4/Garrison | Triggered checkpoint 19472 | -4/Garrison | Garrison Relay disabled 19649 | -4/Garrison | Discovered exit to Research (range 12) 19678 | -4/Garrison | Triggered checkpoint 19720 | -4/Garrison | Garrison Relay disabled 19769 | -4/Garrison | Build established: Botlord-Gunner 19810 | -4/Garrison | Triggered checkpoint 19842 | -4/Garrison | Triggered checkpoint 19907 | -4/Garrison | Discovered exit to Research (range 12) 19960 | -4/Garrison | Triggered checkpoint 19996 | -4/Garrison | Garrison Relay disabled 20330 | -4/Garrison | Found Adv. Powered Armor 20334 | -4/Garrison | Found Adv. Powered Armor 20605 | -4/Garrison | Garrison Relay disabled 20702 | -4/Garrison | Triggered checkpoint 20771 | -4/Garrison | Entered Research 20771 | -3/Research | Accompanied by 8 allies 20771 | -3/Research | Evolved 2 slots: Power x1, Utility x1 20971 | -3/Research | Revision forces began assault on 0b10 21021 | -3/Research | P-80 Master assimilated allied Virus 7d 21058 | -3/Research | Met up with Revision 17++ 21471 | -3/Research | Research terminal network offline 21894 | -3/Research | Spotted Striker 22126 | -3/Research | Spotted Striker 22128 | -3/Research | Spotted Striker 22161 | -3/Research | Allies destroyed Striker 22170 | -3/Research | Discovered new exit (range 11) 22330 | -3/Research | Found Gamma Bomb Array 22435 | -3/Research | Build established: Scavenger-Gunner 22611 | -3/Research | Spotted Striker 22627 | -3/Research | Destroyed Striker 22648 | -3/Research | Destroyed 7 combat bots 22757 | -3/Research | Discovered new exit (range 13) 22792 | -3/Research | Spotted B-86 Titan 22814 | -3/Research | Destroyed B-86 Titan 22822 | -3/Research | Spotted Striker 22824 | -3/Research | Destroyed Striker 22835 | -3/Research | Spotted Striker 22848 | -3/Research | Destroyed Striker 22928 | -3/Research | Fabricated Huge Storage Unit (x1) 23430 | -3/Research | Spotted Striker 23431 | -3/Research | Destroyed Striker 23513 | -3/Research | Spotted Striker 23515 | -3/Research | Spotted Striker 23518 | -3/Research | Spotted Striker 23524 | -3/Research | Allies destroyed Striker 23527 | -3/Research | Destroyed Striker 23563 | -3/Research | Destroyed Striker 23583 | -3/Research | Lost 3 parts (1n2w) 23602 | -3/Research | Destroyed 13 combat bots 23606 | -3/Research | Spotted Striker 23606 | -3/Research | Spotted Striker 23627 | -3/Research | Destroyed Striker 23634 | -3/Research | Destroyed Striker 23658 | -3/Research | Spotted Striker 23678 | -3/Research | Destroyed Striker 23696 | -3/Research | Spotted Striker 23696 | -3/Research | Destroyed Striker 23700 | -3/Research | Spotted Striker 23720 | -3/Research | Destroyed 14 combat bots 23726 | -3/Research | Destroyed Striker 23734 | -3/Research | Core integrity fell below 50% 23754 | -3/Research | Spotted Executioner 23774 | -3/Research | Destroyed Executioner 23797 | -3/Research | Lost 9 parts (2n4u3w) 23819 | -3/Research | Found Prototype Processor 23819 | -3/Research | Identified Exp. Core Analyzer 23837 | -3/Research | Found Exp. Core Analyzer 23843 | -3/Research | Spotted Striker 23851 | -3/Research | Destroyed Striker 23854 | -3/Research | Spotted Striker 23858 | -3/Research | Destroyed Striker 23923 | -3/Research | Spotted Striker 23931 | -3/Research | Destroyed Striker 23982 | -3/Research | Destroyed 8 combat bots 24056 | -3/Research | Spotted Striker 24068 | -3/Research | Destroyed Striker 24114 | -3/Research | Spotted Striker 24115 | -3/Research | Spotted Striker 24130 | -3/Research | Destroyed Striker 24130 | -3/Research | Destroyed Striker 24153 | -3/Research | Lost 3 parts (1p1n1w) 24166 | -3/Research | High security lockdown imminent 24246 | -3/Research | High security lockdown engaged 24370 | -3/Research | Lost 3 parts (2p1w) 24402 | -3/Research | Spotted Investigator 24406 | -3/Research | Destroyed Investigator 24478 | -3/Research | Destroyed 26 combat bots 24517 | -3/Research | Sterilization system engaged 24517 | -3/Research | Non-combat units ordered to evacuate 24521 | -3/Research | Destroyed 8 combat bots 24571 | -3/Research | Spotted Striker 24574 | -3/Research | Core integrity fell below 20% 24584 | -3/Research | Spotted Striker 24584 | -3/Research | Spotted Striker 24587 | -3/Research | Destroyed by Striker with Compact Linear Accelerator Last Messages --------------- 24571_ G-73 Enforcer destroyed. 24571_ Biometal Medium Treads destroyed. 24572_ M-36 Artificer fits Backup Laser VII on Striker. 24572_ Wave Intensifier disabled. 24573_ Exp. Core Analyzer destroyed. 24573_ System corrupted by crushing effect (+1). 24573_ Knocked back. 24574_ Micro-nuke Launcher destroyed. 24574_ Destroyed Micro-nuke Launcher. 24574_ Lgt. Quantum Reactor destroyed. 24574_ Huge Storage Unit destroyed. 24574_ M-36 Artificer fits Backup Laser VII on Striker. 24578_ Acquired 19 matter. 24578_ Acquired 29 matter. 24579_ The unstable cave ceiling collapses. 24579_ Centrium Light Armor Plating crushed. 24579_ Acquired 8 matter. 24581_ Exp. Heat Sink destroyed. 24585_ Knocked back. [Achievement: 40k Club] Map ----- +----------------------------------------------------+ | ## ]]] ! = """????????????????????????????? | | % %]]] ! """????????????????????????????? | | []]] * """ "?????????????????????????? | | =[%[ """ """???????????????????????? | | ### ![ * ??????????????????????? | | ??# !!%%% ??????????????????????? | | ### # !!!!! #########?????????????????????????? | | !!!! = #???####?????#????????????????????? | | !|= !]#???# #???? #????????????????????? | | # =%]##### ##### ##???????????????????? | | # ! #???????????????????? | | / [% #???????????????????? | | #= [ #????????????????# | | ** =% #????????????????# | | !#%=|= #????????????????# | | #]%% mK #????????????????+ | | ######### #[= !! "T"" #????????????????# | | ???# ! * """" #????????????????# | | ???# %%* #????????????????# | | ???# ===!! ##???##???#####?????? | | ???# % #### ##?? #?? | | ???# ##########;+# # # # ### # ? | | ???# ???# # # # "?? | | ???# ????# # ## #?? | | ???# ????# # #?? | | ???# ?????# @%% # # #?? | | ???# ??????## ;; ;#### ! # ## % ??? | | ???"?????? = *%%% =%= ???? | | ????????? # ! # # =[ ????? | | ????????# # # # ####??? | | ????????# [ ## ???? | | ????????# # = # # % #?????? | | ????????# # =!##% #?????? | | ????????? /%* =% #?????? | | ??????????? ! # # ###!!#### #?????? | | ???????????? # # #C## # #??# #?????? | | ???????????? ##### # !%# ##??# #?????? | | ????????????? ???# ## %% ###?# #?????? | | ??????????????? ????## ###=# #?# #?????# | | ???????????????#####?????# **! ### #???? | | ?????????????????????????# # [ ] # #??? | | ?????????????????????????# # # # #?? = | | ??????????????? ?????????# +### | | ??????????????? ??????### " | | ??????????????? ??### # !####= = #???? | | ???????????????? " %% = / "! | | ???????????????? # =%= ! # | | ?????????????########!! !! ## #???? | | ????????????? ! %![% %! # # # #???? | | ???????????? ![= [=%= # #???? | +----------------------------------------------------+ Best States ------------- Heat Dissipation 76 Coolant Potential 80 Energy Generation 49 Energy Capacity 580 Matter Stores 300 Matter Capacity 500 Sight Range 20 Terrain Scan Range 24 Terrain Scan Density 10 Jamming Range 16 Armor Coverage 1600 Utility Shielding 33 Point Defense Rating 240 Weapon Cycling 30 Evasion (%) 50 Targeting Accuracy 20 Target Analysis 12 Core Analysis 8 Armor Integrity Analysis 30 Recoil Reduction 6 Kinecelleration 30 Salvage Targeting 1 Offensive Hacking 12 Defensive Hacking 24 Relay Coupler Types 4 Relay Coupler Value 71 Item Schematics ----------------- Huge Storage Unit | -8/Materials | Hacked Robot Schematics ------------------ None Fabricated ------------ Huge Storage Unit | x1 | -7/Factory Huge Storage Unit | x1 | -3/Research Alien Tech Used ----------------- None Achievements -------------- 40k Club Beloved Factory Defaults Killing Spree No Explosion For You Party Time Preemptive Strike Pwned Revolutionary Research Rockin' Loadout Turtlemind Challenges ------------ None Game ------ Seed LargePlasmaMantle Manual? 0 Play Time 03:33:09 Cumulative 34.5 hours Start 2022.12.10 @ 15:33:04 End 2022.12.10 @ 19:17:41 Sessions 1 Manual Loads 0 Difficulty Rogue Special Mode None Game No. 23 Rogue 23 Adventurer 0 Explorer 0 Win Type - Total 0 Types 0/0/0/0/0/0/0/0/0 Lore% 37 Gallery% 41 Achievement% 39 Wizard Run 0 Options --------- ASCII 0 Keyboard 1 Movement Vi Keybinds 0 Fullscreen 2 Font 18/Terminus Map View 76x50 Tactical HUD 1 Map Filters NONE Filters NONE Steam X RUN: df67e84c-a895-4d97-bbc0-3141687e5239